bitfinex/quotes_ETHUSD_20240608
["timestamp","ask_amount","ask_price","bid_price","bid_amount"]
[1717804800758,2.4071,3680.6,3679.8,2.59681013]
[1717804801150,2.4071,3680.6,3679.8,1.87281013]
[1717804801607,2.4071,3680.6,3679.8,1.39285466]
[1717804804894,0.27360781,3681.6,3679.1,1.14177089]
[1717804804895,2.3668,3680.2,3679.1,1.14177089]
[1717804805194,1.03308,3680.1,3679.2,1.39285466]
[1717804805393,0.724,3680.1,3679.2,1.39285466]
[1717804805691,2.3668,3679.8,3679.2,1.39285466]
[1717804805859,3.0908,3679.8,3678.9,1.14177089]
[1717804806059,2.3668,3679.7,3679.0,1.39285466]
[1717804806260,0.32267886,3681.3,3678.6,3.92710609]
[1717804806261,2.3668,3679.0,3678.6,2.5]
[1717804806493,2.67588,3679.0,3678.6,2.5]
[1717804806692,2.3668,3679.0,3678.6,2.5]
[1717804807196,0.724,3678.7,3678.6,2.5]
[1717804807694,2.3668,3678.6,3678.4,0.1243704]
[1717804807858,0.724,3678.5,3678.4,0.1243704]
[1717804808061,1.03308,3678.5,3678.4,0.1243704]
[1717804808718,2.42593466,3678.5,3678.4,0.1243704]
[1717804808949,2.11685466,3678.5,3678.4,0.1243704]
[1717804809101,2.11685466,3678.5,3675.7,2.2675]
[1717804809102,2.3668,3678.4,3676.8,0.724]
[1717804809426,2.3668,3677.8,3676.8,0.724]
[1717804809627,0.724,3677.3,3675.7,1.14177089]
[1717804809794,0.724,3677.1,3675.8,0.28412672]
[1717804809996,0.724,3676.9,3675.9,0.724]
[1717804810301,0.724,3676.9,3675.2,2.2675]
[1717804810699,0.724,3676.9,3675.3,1.39285466]
[1717804810919,0.724,3676.9,3675.8,0.724]
[1717804811121,2.2822,3676.8,3675.4,0.13928547]
[1717804811423,0.724,3676.7,3675.4,0.13928547]
[1717804811592,0.724,3676.7,3675.6,0.724]
[1717804811808,2.11685466,3676.7,3675.0,2.37]
[1717804812019,1.39285466,3676.7,3675.0,3.76285466]
[1717804812330,1.39285466,3676.7,3675.5,0.724]
[1717804812331,0.724,3676.5,3675.5,0.724]
[1717804812736,0.36750547,3676.6,3675.7,0.724]
[1717804812964,1.54256013,3676.8,3675.7,0.724]
[1717804813152,0.68676185,3677.6,3675.8,1.39285466]
[1717804813292,0.68676185,3677.6,3674.7,0.1243704]
[1717804813293,0.58751579,3678.1,3676.0,1.39285466]
[1717804813634,0.724,3677.8,3676.7,0.724]
[1717804813805,0.724,3677.8,3676.0,1.39285466]
[1717804814004,0.21168547,3677.7,3676.1,0.13928547]
[1717804814205,1.39285466,3677.6,3674.6,2.4441]
[1717804814443,0.58751579,3678.1,3674.6,2.4441]
[1717804814444,0.58751579,3678.1,3675.7,1.39285466]
[1717804814598,1.39285466,3678.0,3675.8,1.745]
[1717804814934,1.39285466,3678.0,3675.9,1.39285466]
[1717804815715,1.39285466,3678.0,3676.0,0.55]
[1717804815919,0.13928547,3677.9,3676.1,1.76164013]
[1717804816248,1.39285466,3677.8,3676.2,2.295]
[1717804817510,2.2822,3677.7,3676.2,0.55]
[1717804817700,2.325477,3677.7,3676.2,0.55]
[1717804817900,1.39285466,3677.6,3676.2,0.55]
[1717804818215,0.043277,3677.7,3675.8,1.745]
[1717804818216,2.2822,3677.5,3676.3,1.39285466]
[1717804818417,2.32543708,3677.5,3676.4,0.68928547]
[1717804818761,2.32543708,3677.5,3676.5,1.39285466]
[1717804818919,2.32543708,3677.5,3676.4,0.68928547]
[1717804818920,0.04323708,3677.5,3677.1,1.745]
[1717804819236,2.2822,3678.4,3677.1,1.745]
[1717804819237,2.2822,3678.4,3677.2,2.11735466]
[1717804819597,0.04174383,3678.3,3677.2,0.55]
[1717804820645,1.39285466,3678.2,3676.0,1.745]
[1717804820860,1.39285466,3678.2,3675.5,2.4441]
[1717804820861,2.32403484,3678.1,3676.1,1.94285466]
[1717804821067,2.46332031,3678.1,3676.1,1.94285466]
[1717804821364,1.39285466,3678.0,3676.1,1.94285466]
[1717804821745,0.04183101,3677.9,3676.1,1.94285466]
[1717804822059,2.2822,3677.7,3675.6,0.24441]
[1717804822261,1.43467992,3677.6,3675.7,1.39285466]
[1717804823037,0.04182526,3677.6,3675.7,1.39285466]
[1717804823238,0.04182526,3677.6,3675.7,3.13785466]
[1717804823466,0.23240253,3677.5,3675.8,0.31378547]
[1717804823652,0.04166208,3677.4,3675.9,1.39285466]
[1717804824173,0.04166208,3677.4,3676.0,0.55]
[1717804824480,0.04166208,3677.4,3676.1,1.39285466]
[1717804824678,0.04166208,3677.4,3676.2,0.55]
[1717804824882,1.745,3677.2,3675.0,2.37]
[1717804825085,2.32384869,3677.1,3675.4,1.39285466]
[1717804825289,2.32384869,3677.1,3675.6,1.39285466]
[1717804825952,2.32384869,3677.1,3675.9,1.745]
[1717804826302,2.32384869,3677.1,3676.0,1.39285466]
[1717804826465,2.32384869,3677.1,3676.1,0.55]
[1717804826787,2.32384869,3677.1,3676.2,1.39285466]
[1717804826985,0.04164869,3677.1,3676.3,0.55]
[1717804827291,2.508089,3677.7,3676.4,1.39285466]
[1717804827446,0.04019842,3677.0,3676.5,0.91878547]
[1717804827647,2.508089,3677.7,3676.6,1.39285466]
[1717804827891,2.508089,3677.7,3676.7,0.55]
[1717804828088,2.508089,3677.7,3676.8,1.64214013]
[1717804828393,2.508089,3677.7,3676.9,0.55]
[1717804828563,2.508089,3677.7,3677.0,1.39285466]
[1717804828890,2.508089,3677.7,3677.1,0.55]
[1717804829190,2.508089,3677.7,3677.1,1.94285466]
[1717804829553,0.04043434,3677.6,3677.1,1.94285466]
[1717804831259,0.04043434,3677.6,3677.2,1.39285466]
[1717804831458,0.225889,3677.7,3677.3,3.26937]
[1717804831687,0.225889,3677.7,3677.4,1.39285466]
[1717804831996,0.225889,3677.7,3677.5,0.55]
[1717804832302,0.04052202,3677.6,3677.5,1.94285466]
[1717804832660,0.225889,3677.7,3677.5,1.94285466]
[1717804832892,0.225889,3677.7,3677.5,0.55]
[1717804833203,0.04055295,3677.6,3677.4,0.55]
[1717804833863,0.225889,3677.7,3677.4,0.55]
[1717804834968,2.3886,3678.8,3677.6,2.71916]
[1717804835169,2.3886,3678.8,3677.8,2.71895]
[1717804835375,0.03795121,3678.7,3678.1,2.71874]
[1717804835574,0.03795121,3678.7,3678.2,1.94285466]
[1717804836098,2.3886,3678.8,3678.2,1.94285466]
[1717804836465,0.03523502,3678.7,3678.2,1.94285466]
[1717804836796,2.3886,3678.8,3678.2,1.94285466]
[1717804837309,0.03523563,3678.7,3678.3,2.71862]
[1717804837596,0.03523563,3678.7,3678.4,0.55]
[1717804837782,0.008,3679.8,3678.4,0.55]
[1717804837783,2.71806,3679.1,3678.4,0.55]
[1717804837964,2.3886,3679.0,3678.4,0.55]
[1717804838166,2.42384138,3679.0,3678.4,0.55]
[1717804840405,2.42384138,3679.0,3678.4,2.71852]
[1717804840610,2.42384138,3679.0,3678.5,0.55]
[1717804840917,2.66622552,3679.0,3678.5,0.55]
[1717804842519,2.66622552,3679.0,3678.3,0.55]
[1717804842695,2.42384138,3679.0,3678.3,0.55]
[1717804842877,0.03524138,3679.0,3678.5,2.71849]
[1717804843082,2.3886,3679.6,3678.3,0.55]
[1717804843083,2.3886,3679.6,3678.7,2.71833]
[1717804843423,0.034078,3679.5,3678.7,2.71833]
[1717804843725,0.26302014,3679.4,3678.8,0.55]
[1717804844223,0.03407417,3679.3,3678.8,1.94285466]
[1717804844799,0.03407417,3679.3,3678.9,2.71819]
[1717804844977,0.03407417,3679.3,3679.0,0.55]
[1717804845180,2.3886,3679.6,3679.0,0.55]
[1717804845415,0.25961234,3679.5,3679.0,0.55]
[1717804845720,0.29368831,3679.5,3679.0,0.55]
[1717804846606,0.03407597,3679.5,3679.1,4.11086466]
[1717804846913,0.20752336,3679.7,3679.2,0.55]
[1717804847219,0.03465332,3679.4,3679.2,0.55]
[1717804847417,0.20752336,3679.7,3679.2,0.55]
[1717804847618,0.03351435,3679.3,3679.2,0.55]
[1717804847820,0.20752336,3679.7,3679.2,0.55]
[1717804848311,0.03352009,3679.6,3679.2,0.55]
[1717804858453,2.75127009,3679.6,3678.7,2.71833]
[1717804858632,2.2976,3679.4,3678.8,0.55]
[1717804859014,0.03167359,3679.3,3678.8,0.55]
[1717804861236,2.74962359,3679.3,3678.2,2.71865]
[1717804861440,0.26251529,3679.2,3678.2,2.71865]
[1717804861737,2.2976,3678.9,3677.8,2.719]
[1717804861942,2.71834,3678.8,3677.4,2.71929]
[1717804862241,2.74853813,3678.8,3677.5,1.39285466]
[1717804862412,2.71848,3678.6,3677.5,1.39285466]
[1717804862609,2.71848,3678.6,3677.7,2.71907]
[1717804862802,0.03008655,3678.5,3677.9,2.71892]
[1717804863009,2.2976,3678.9,3678.1,2.71876]
[1717804863203,0.03008463,3678.4,3678.1,4.11161466]
[1717804863416,2.2976,3678.9,3678.1,4.11161466]
[1717804864041,2.74829548,3678.8,3677.7,2.71907]
[1717804864612,2.74829548,3678.8,3677.9,2.7189]
[1717804864831,2.74829548,3678.8,3677.9,4.11175466]
[1717804865043,0.02995548,3678.8,3678.1,2.71879]
[1717804865457,0.02995548,3678.8,3678.2,0.55]
[1717804870172,2.74826548,3678.8,3677.6,2.7191]
[1717804870372,2.74826548,3678.8,3677.6,4.11195466]
[1717804870558,0.50458655,3678.7,3677.8,2.71897]
[1717804870873,0.50458655,3678.7,3677.9,0.55]
[1717804871071,0.02891839,3678.6,3677.9,0.55]
[1717804871390,0.02891839,3678.6,3678.0,2.71883]
[1717804871533,2.2976,3678.9,3678.1,0.55]
[1717804871733,0.02891647,3678.5,3678.2,2.71868]
[1717804871934,2.799159,3678.9,3678.3,0.55]
[1717804871935,2.2976,3678.9,3678.3,0.55]
[1717804872154,0.02891456,3678.4,3678.3,0.55]
[1717804872360,2.2976,3678.9,3678.3,0.55]
[1717804872576,0.02891456,3678.4,3678.3,0.55]
[1717804872770,2.2976,3678.9,3678.3,0.55]
[1717804872976,0.0289356,3678.4,3678.3,0.55]
[1717804873162,2.2976,3678.9,3678.3,0.55]
[1717804873386,2.4668,3679.5,3678.7,2.7183]
[1717804873671,2.4668,3679.5,3678.9,2.71816]
[1717804874064,2.4668,3679.5,3679.0,0.55]
[1717804875242,2.4668,3679.5,3678.9,2.71816]
[1717804878569,2.4668,3679.5,3678.1,9.175]
[1717804878570,2.4668,3679.5,3678.5,2.71846]
[1717804878743,2.4668,3679.5,3678.6,0.55]
[1717804878942,0.53919734,3679.4,3678.6,0.55]
[1717804881758,3.25705734,3679.4,3678.6,0.55]
[1717804882369,3.25705734,3679.4,3678.5,2.71846]
[1717804882686,3.25705734,3679.4,3678.1,2.71875]
[1717804882852,3.25705734,3679.4,3678.2,0.55]
[1717804883053,0.63115591,3679.3,3678.2,0.55]
[1717804884682,0.63115591,3679.3,3678.3,2.71863]
[1717804884991,0.63115591,3679.3,3678.4,0.55]
[1717804885454,0.02895547,3679.2,3678.4,0.55]
[1717804890103,0.02895547,3679.2,3678.5,2.71849]
[1717804890316,0.02895547,3679.2,3678.6,0.55]
[1717804892201,0.39656732,3679.1,3678.6,0.55]
[1717804892400,0.42565252,3679.1,3678.6,0.55]
[1717804893378,0.0290852,3679.1,3678.6,0.55]
[1717804893571,0.63115591,3679.3,3678.6,0.55]
[1717804893970,0.02908969,3679.2,3678.6,0.55]
[1717804895973,2.301,3679.3,3678.6,0.55]
[1717804896173,0.02901549,3679.1,3678.6,0.55]
[1717804896372,2.301,3679.3,3678.6,0.55]
[1717804896600,0.02901358,3679.0,3678.6,0.55]
[1717804896800,0.501886,3679.2,3678.6,0.55]
[1717804896975,0.02901166,3678.9,3678.6,0.55]
[1717804897170,0.501886,3679.2,3678.6,0.55]
[1717804897386,0.02895811,3678.8,3678.6,0.55]
[1717804897571,0.501886,3679.2,3678.6,0.55]
[1717804897893,0.02895619,3678.7,3678.6,0.55]
[1717804898215,0.02897411,3678.7,3678.1,4.11160466]
[1717804898504,2.7181,3679.1,3678.2,0.55]
[1717804898720,0.02897149,3678.6,3678.2,0.55]
[1717804903625,0.02896543,3678.5,3678.2,0.55]
[1717804906169,0.02896543,3678.5,3678.2,1.276]
[1717804906518,0.02896543,3678.5,3678.3,2.71864]
[1717804906717,0.02896543,3678.5,3678.4,0.55]
[1717804907962,0.02897149,3678.6,3678.5,2.71849]
[1717804908263,0.02897149,3678.6,3678.5,3.26849]
[1717804908873,0.02897149,3678.6,3678.5,3.99449]
[1717804909162,0.02897149,3678.6,3678.5,4.53322447]
[1717804909662,0.02897149,3678.6,3678.5,3.80722447]
[1717804909956,0.02897149,3678.6,3678.5,4.53322447]
[1717804910349,0.02897149,3678.6,3678.5,5.92607913]
[1717804917398,0.02897149,3678.6,3678.5,7.51577913]
[1717804917749,0.02897149,3678.6,3678.5,8.24177913]
[1717804921088,0.02897149,3678.6,3678.5,5.20007913]
[1717804921333,0.02897149,3678.6,3678.5,5.92607913]
[1717804921895,0.02897149,3678.6,3678.5,5.20007913]
[1717804922437,0.02897149,3678.6,3678.5,5.92607913]
[1717804923201,0.02897149,3678.6,3678.5,5.20007913]
[1717804923500,0.02897149,3678.6,3678.5,5.92607913]
[1717804924999,0.0583972,3678.6,3678.5,5.92607913]
[1717804929340,0.02897149,3678.6,3678.5,5.92607913]
[1717804931166,0.008,3679.8,3678.5,3.20758913]
[1717804931335,2.3683,3680.0,3679.7,0.726]
[1717804931535,2.3683,3680.0,3679.8,0.55]
[1717804932063,2.3683,3680.0,3679.6,0.55]
[1717804932362,2.65030545,3679.9,3679.6,0.55]
[1717804932534,2.65030545,3679.9,3679.5,0.55]
[1717804933076,2.3683,3679.8,3679.2,0.55]
[1717804934022,2.3683,3679.8,3679.1,7.43]
[1717804935465,2.3683,3679.8,3679.2,0.55]
[1717804935760,2.85797555,3679.9,3678.9,2.71816]
[1717804935761,2.3683,3679.6,3679.0,0.55]
[1717804938999,0.0266234,3679.5,3679.0,0.55]
[1717804939142,0.0266234,3679.5,3679.1,1.39285466]
[1717804939476,0.0266234,3679.5,3679.2,0.55]
[1717804942270,0.58139195,3679.7,3679.0,0.55]
[1717804942480,0.02663907,3679.4,3679.1,1.39285466]
[1717804942785,0.58139195,3679.7,3679.2,0.55]
[1717804943284,0.0266429,3679.6,3679.2,0.55]
[1717804943484,0.0266429,3679.6,3679.3,1.39285466]
[1717804943671,0.2076701,3679.9,3679.4,0.55]
[1717804943884,0.02664928,3679.5,3679.4,1.94285466]
[1717804944195,1.78208292,3679.9,3679.4,1.94285466]
[1717804944698,0.02665503,3679.8,3679.4,0.55]
[1717804944999,0.02665503,3679.8,3678.4,7.43]
[1717804945000,0.02665503,3679.8,3679.5,0.55]
[1717804945359,0.77013822,3679.8,3679.2,0.55]
[1717804951344,3.48771822,3679.8,3679.2,0.55]
[1717804951848,2.3532,3679.7,3679.2,0.55]
[1717804952152,2.37987149,3679.7,3679.2,0.55]
[1717804952351,0.82106647,3679.6,3679.2,0.55]
[1717804952850,0.02663608,3679.5,3679.2,0.55]
[1717804955856,0.02663608,3679.5,3678.4,7.43]
[1717804956060,0.726,3679.1,3678.0,2.71883]
[1717804956373,5.07133,3679.0,3678.1,1.39285466]
[1717804956522,0.579733,3678.9,3678.1,1.39285466]
[1717804956727,0.60537994,3678.9,3678.1,1.39285466]
[1717804957159,1.33137994,3678.9,3678.0,2.71883]
[1717804957747,1.305733,3678.9,3678.0,2.71883]
[1717804957916,2.3532,3678.8,3678.0,2.71883]
[1717804958252,2.37870864,3678.8,3678.0,2.71883]
[1717804958462,2.37870864,3678.8,3678.1,0.55]
[1717804958611,3.50196402,3678.8,3678.1,0.55]
[1717804959349,2.77596402,3678.8,3678.1,0.55]
[1717804962512,2.37870864,3678.8,3678.1,2.66885466]
[1717804972281,2.37870864,3678.8,3678.1,1.94285466]
[1717804972441,2.37870864,3678.8,3678.1,2.66885466]
[1717804973475,2.37870864,3678.8,3678.1,1.94285466]
[1717804973974,0.02550864,3678.8,3678.2,1.39285466]
[1717804974181,0.02550864,3678.8,3678.7,0.726]
[1717804974376,5.12168,3679.7,3678.7,2.11885466]
[1717804974561,5.70950736,3679.7,3678.8,1.94285466]
[1717804974877,0.02526785,3679.6,3678.8,1.94285466]
[1717804975043,2.404,3679.4,3678.8,1.94285466]
[1717804975484,0.02526352,3679.3,3678.8,1.94285466]
[1717804980000,0.02526352,3679.3,3678.8,2.66885466]
[1717804980496,0.02526352,3679.3,3678.8,1.94285466]
[1717804980792,0.02526352,3679.3,3678.9,0.726]
[1717804981000,0.02526352,3679.3,3679.0,0.55]
[1717804981498,2.404,3679.4,3679.0,0.55]
[1717804981665,0.02382817,3679.2,3679.0,0.55]
[1717804981865,2.404,3679.4,3679.0,0.55]
[1717804982051,0.02382625,3679.1,3679.0,0.55]
[1717804982369,2.404,3679.4,3679.0,0.55]
[1717804982554,0.02387083,3679.1,3679.0,0.55]
[1717804982757,5.12168,3679.7,3679.0,1.12314417]
[1717804982956,0.02387083,3679.1,3679.0,0.55]
[1717804983489,5.12168,3679.7,3679.0,0.55]
[1717804983798,0.02387083,3679.1,3679.0,0.55]
[1717804984295,5.12168,3679.7,3679.0,0.55]
[1717804984485,0.02391729,3679.1,3679.0,0.55]
[1717804984687,5.12168,3679.7,3679.0,0.55]
[1717804984857,0.02391729,3679.1,3679.0,1.94285466]
[1717804985061,2.404,3679.7,3679.0,2.48155513]
[1717804985271,0.02391729,3679.1,3679.0,1.94285466]
[1717804985467,2.404,3679.7,3679.1,2.71802]
[1717804985668,2.404,3679.7,3679.2,0.55]
[1717804986611,2.404,3679.7,3679.2,1.94285466]
[1717804986973,2.404,3679.7,3679.2,2.66885466]
[1717804987912,0.2076701,3679.9,3679.3,1.39285466]
[1717804988090,0.2076701,3679.9,3679.4,1.276]
[1717804988289,0.2076701,3679.9,3679.5,1.39285466]
[1717804988635,0.2076701,3679.9,3679.6,0.55]
[1717804988795,0.2076701,3679.9,3679.6,1.94285466]
[1717804990392,0.2076701,3679.9,3679.6,2.48151513]
[1717804991619,0.2076701,3679.9,3679.6,3.20751513]
[1717804991827,0.2076701,3679.9,3679.7,1.39285466]
[1717804991992,0.2076701,3679.9,3679.8,0.522]
[1717804992192,0.2076701,3679.9,3679.8,1.91485466]
[1717804992596,0.2076701,3679.9,3679.8,2.50458117]
[1717804992805,0.2076701,3679.9,3679.8,3.23058117]
[1717804993530,2.3632,3680.4,3679.9,2.71745]
[1717804993838,2.3632,3680.4,3679.9,4.11030466]
[1717804994137,2.3632,3680.4,3680.0,1.276]
[1717804995140,2.71646,3681.3,3680.1,4.11016466]
[1717804995340,0.726,3681.2,3680.1,4.66016466]
[1717804996234,2.71646,3681.3,3680.1,5.19878113]
[1717804996404,3.44246,3681.3,3680.1,5.19878113]
[1717804996605,2.71646,3681.3,3680.1,5.19878113]
[1717804997220,2.3632,3680.9,3680.1,5.19878113]
[1717804998144,2.3632,3681.2,3680.1,5.19878113]
[1717804999612,2.3632,3681.2,3680.1,7.51238113]
[1717805003550,0.008,3681.9,3680.1,10.22969113]
[1717805004733,0.008,3681.9,3680.1,7.91609113]
[1717805004939,28.30737843,3680.2,3680.1,7.91609113]
[1717805005455,26.90048128,3680.2,3680.1,7.91609113]
[1717805006332,26.4761508,3680.2,3680.1,10.63340113]
[1717805006540,18.09519479,3680.2,3680.1,15.40838466]
[1717805006844,16.30435517,3680.2,3680.1,15.40838466]
[1717805007349,16.32859787,3680.2,3680.1,15.40838466]
[1717805009619,16.14069787,3680.2,3680.1,15.40838466]
[1717805009936,10.45869787,3680.2,3680.1,15.40838466]
[1717805012644,4.50738704,3680.2,3680.1,15.40838466]
[1717805013006,4.48314434,3680.2,3680.1,15.40838466]
[1717805013247,4.48314434,3680.2,3680.1,16.13438466]
[1717805014853,4.48314434,3680.2,3680.1,16.41043083]
[1717805015738,3.52904434,3680.2,3680.1,16.41043083]
[1717805020544,3.52904434,3680.2,3680.1,6.82747466]
[1717805020742,3.55347447,3680.2,3680.1,4.11016466]
[1717805021059,3.55347447,3680.2,3680.1,4.83616466]
[1717805021975,3.55347447,3680.2,3680.1,8.10347466]
[1717805022149,3.52904434,3680.2,3680.1,8.10347466]
[1717805023879,3.52904434,3680.2,3680.1,7.37747466]
[1717805024459,3.52904434,3680.2,3680.1,9.75777466]
[1717805025251,3.52904434,3680.2,3680.1,12.75777466]
[1717805025881,3.47471371,3680.2,3680.1,12.75777466]
[1717805026582,3.47471371,3680.2,3680.1,14.49777466]
[1717805027684,3.47471371,3680.2,3680.1,17.21508466]
[1717805030285,3.47471371,3680.2,3680.1,18.34786314]
[1717805030488,3.47471371,3680.2,3680.1,17.21508466]
[1717805031355,2.66125388,3680.2,3680.1,18.34786314]
[1717805031550,2.66125388,3680.2,3680.1,10.96025314]
[1717805031812,2.66125388,3680.2,3680.1,9.82747466]
[1717805032909,2.66125388,3680.2,3680.1,4.11016466]
[1717805033054,5.09915388,3680.2,3680.1,4.11016466]
[1717805033366,5.12323905,3680.2,3680.1,4.11016466]
[1717805034555,5.12323905,3680.2,3680.1,4.66016466]
[1717805037593,5.09915388,3680.2,3680.1,4.66016466]
[1717805037796,5.12321841,3680.2,3680.1,4.66016466]
[1717805043335,2.00879966,3680.2,3680.1,4.66016466]
[1717805043632,1.98473513,3680.2,3680.1,10.37747466]
[1717805043928,1.98473513,3680.2,3680.1,7.66016466]
[1717805044221,1.98473513,3680.2,3680.1,4.66016466]
[1717805044592,1.98473513,3680.2,3680.1,4.11016466]
[1717805046628,1.98473513,3680.2,3680.1,4.66016466]
[1717805059331,4.39483513,3680.2,3680.1,4.66016466]
[1717805066655,1.98473513,3680.2,3680.1,4.66016466]
[1717805072965,1.98473513,3680.2,3680.1,9.66277466]
[1717805073327,1.98473513,3680.2,3680.1,10.79555314]
[1717805074077,1.98473513,3680.2,3680.1,11.08475052]
[1717805074369,1.98473513,3680.2,3680.1,9.66277466]
[1717805074785,1.98473513,3680.2,3680.1,12.66277466]
[1717805075573,1.98473513,3680.2,3680.1,15.38008466]
[1717805075872,1.98473513,3680.2,3680.1,13.38777466]
[1717805076333,1.98473513,3680.2,3680.1,14.81185566]
[1717805076866,1.98473513,3680.2,3680.1,13.38777466]
[1717805078642,1.98473513,3680.2,3680.1,16.10508466]
[1717805079275,1.98473513,3680.2,3680.1,13.38777466]
[1717805080065,1.98473513,3680.2,3680.1,14.81158873]
[1717805080870,1.98473513,3680.2,3680.1,13.38777466]
[1717805081282,1.98473513,3680.2,3680.1,14.81116839]
[1717805085385,1.98473513,3680.2,3680.1,13.38777466]
[1717805086484,1.98473513,3680.2,3680.1,14.81116839]
[1717805087689,1.98473513,3680.2,3680.1,17.52847839]
[1717805090396,1.98473513,3680.2,3680.1,14.81116839]
[1717805090601,1.98473513,3680.2,3680.1,17.52847839]
[1717805091098,1.98473513,3680.2,3680.1,14.81116839]
[1717805091609,1.98473513,3680.2,3680.1,13.38777466]
[1717805092709,1.98473513,3680.2,3680.1,11.10247466]
[1717805094369,1.98473513,3680.2,3680.1,13.81978466]
[1717805095173,1.98473513,3680.2,3680.1,11.10247466]
[1717805096204,1.98473513,3680.2,3680.1,13.81978466]
[1717805097298,1.98473513,3680.2,3680.1,11.10247466]
[1717805097712,1.98473513,3680.2,3680.1,13.81978466]
[1717805097927,1.98473513,3680.2,3680.1,13.09478466]
[1717805098216,1.98473513,3680.2,3680.1,13.81978466]
[1717805098574,1.98473513,3680.2,3680.1,11.10247466]
[1717805100012,1.98473513,3680.2,3680.1,10.37747466]
[1717805100515,1.98473513,3680.2,3680.1,11.51570691]
[1717805100717,1.98473513,3680.2,3680.1,12.24070691]
[1717805101006,1.98473513,3680.2,3680.1,11.10247466]
[1717805101379,4.27573513,3680.2,3680.1,9.82747466]
[1717805101579,4.27573513,3680.2,3680.1,4.11016466]
[1717805102226,2.41230864,3680.2,3679.7,0.725]
[1717805102401,2.291,3680.1,3679.8,1.39285466]
[1717805102712,3.016,3680.1,3679.6,2.71762]
[1717805102918,2.291,3680.0,3679.7,1.39285466]
[1717805103501,2.291,3680.0,3679.6,2.71762]
[1717805103706,0.725,3679.8,3679.6,2.71762]
[1717805104210,2.291,3679.7,3679.1,2.71799]
[1717805104412,2.291,3679.7,3679.3,2.71789]
[1717805108378,2.291,3679.7,3679.4,1.94285466]
[1717805109195,2.291,3679.7,3679.4,1.91485466]
[1717805109828,2.291,3679.7,3679.5,2.71776]
[1717805110031,2.291,3679.7,3679.6,1.94285466]
[1717805115334,0.21320767,3680.1,3679.6,1.94285466]
[1717805115335,2.70090767,3680.1,3679.7,2.71757]
[1717805115634,2.70090767,3680.1,3679.9,2.71746]
[1717805115832,2.70090767,3680.1,3680.0,1.94285466]
[1717805118727,1.98473513,3680.2,3680.1,2.71731]
[1717805119023,1.98473513,3680.2,3680.1,4.66016466]
[1717805125742,1.98473513,3680.2,3680.1,5.38516466]
[1717805130145,1.98473513,3680.2,3680.1,4.66016466]
[1717805130311,1.98473513,3680.2,3680.1,5.38516466]
[1717805131338,1.98473513,3680.2,3680.1,8.10247466]
[1717805134427,1.98473513,3680.2,3680.1,10.81978466]
[1717805134627,1.98473513,3680.2,3680.1,13.81978466]
[1717805135672,1.98473513,3680.2,3680.1,16.17888466]
[1717805137457,0.65843514,3680.2,3680.1,16.17888466]
[1717805137767,0.09515537,3680.2,3680.1,17.31711691]
[1717805137927,0.09515537,3680.2,3680.1,16.17888466]
[1717805138130,0.09515537,3680.2,3680.1,17.59758905]
[1717805141183,0.09515537,3680.2,3680.1,16.17888466]
[1717805141383,0.09515537,3680.2,3680.1,17.59758905]
[1717805142385,0.09515537,3680.2,3680.1,16.17888466]
[1717805145344,0.09515537,3680.2,3680.1,17.31277851]
[1717805150089,0.09515537,3680.2,3680.1,14.95367851]
[1717805150285,0.09515537,3680.2,3680.1,13.81978466]
[1717805154200,0.09515537,3680.2,3680.1,14.95367851]
[1717805154734,2.21785537,3681.2,3681.1,2.71657]
[1717805154901,2.21785537,3681.2,3681.1,5.38442466]
[1717805156627,1.96785537,3681.2,3681.1,5.38442466]
[1717805160335,1.96785537,3681.2,3681.1,8.10099466]
[1717805164156,0.58718267,3682.8,3682.1,2.71578]
[1717805164457,0.725,3682.5,3682.1,2.71578]
[1717805164654,2.4527,3682.4,3682.1,2.71578]
[1717805164855,2.56722434,3682.4,3682.1,2.71578]
[1717805165009,2.4527,3682.2,3682.1,2.71578]
[1717805165209,2.69510381,3682.2,3682.1,2.71578]
[1717805165438,3.16310383,3682.2,3682.1,2.71578]
[1717805166085,2.4527,3682.1,3681.7,2.71611]
[1717805166248,2.4527,3682.1,3681.7,4.10896466]
[1717805172660,2.4527,3682.1,3681.9,2.71598]
[1717805172883,2.4527,3682.1,3682.0,1.39285466]
[1717805173093,2.75755666,3682.1,3682.0,1.39285466]
[1717805177851,2.4527,3682.1,3682.0,1.39285466]
[1717805180393,2.4527,3682.1,3681.9,2.71598]
[1717805180548,2.4527,3682.1,3681.9,4.10883466]
[1717805181984,2.4527,3682.1,3682.0,1.39285466]
[1717805183586,0.24240381,3682.2,3682.1,2.71584]
[1717805183748,0.24240381,3682.2,3682.1,4.65869466]
[1717805183951,1.85820381,3682.4,3682.1,5.38369466]
[1717805184165,0.58718267,3683.3,3682.2,2.66785466]
[1717805184347,1.64238594,3683.2,3682.2,2.66785466]
[1717805184571,1.05520327,3683.2,3682.2,2.66785466]
[1717805184998,1.64238594,3683.2,3682.2,2.66785466]
[1717805185287,1.05520327,3683.2,3682.6,2.71543]
[1717805185480,0.10813367,3683.1,3682.6,4.10828466]
[1717805186557,0.725,3683.1,3682.6,4.10828466]
[1717805186812,0.10813367,3683.0,3682.6,4.10828466]
[1717805187094,2.47393367,3683.0,3682.6,4.10828466]
[1717805187254,2.82684736,3683.0,3682.6,4.10828466]
[1717805189190,2.82684736,3683.0,3682.7,1.39285466]
[1717805189394,2.47393367,3683.0,3682.7,1.39285466]
[1717805190291,0.725,3682.9,3682.7,1.39285466]
[1717805190657,0.83317764,3682.9,3682.6,2.71543]
[1717805190871,0.10817764,3682.9,3682.6,4.10828466]
[1717805193155,0.10817764,3682.9,3682.7,1.39285466]
[1717805196588,2.2754,3682.8,3682.7,1.39285466]
[1717805196783,2.38364487,3682.8,3682.7,1.39285466]
[1717805202289,2.38364487,3682.8,3682.6,2.71543]
[1717805202490,2.38364487,3682.8,3682.6,4.10828466]
[1717805204138,2.38364487,3682.8,3682.2,3.26574]
[1717805204450,0.725,3682.7,3682.3,1.39285466]
[1717805204801,0.10823971,3682.6,3682.3,1.39285466]
[1717805208165,3.0004,3682.8,3682.3,1.39285466]
[1717805208715,2.2754,3682.8,3682.3,1.39285466]